Cogmind - Beta 13 @@@ ROGUE MODE // 2024.04.05 @ 03:07:50 Player: Toa of Guts Result: Destroyed by Y-72 Warden with Quantum Rifle Performance ------------- Evolutions (5) 2500 Regions Visited (13) 2600 Robots Destroyed (114) 570 Value Destroyed (4218) 4218 Prototype IDs (7) 140 Alien Tech Used (0) 0 Bonus (521) 521 TOTAL SCORE: 10549 Bonus ------- High Alert Combat Kills 233 Follower Combat Kills 315 Friendly Fire -27 Cogmind --------- Core Integrity 0/1000 Matter 269/300 Energy 74/100 System Corruption 8% Temperature Cool (18) Movement Core (50) Location -5/Archives Parts ------- > --- POWER (1) -------- (None) > --- PROPULSION (4) --- (None) > --- UTILITY (8) ------ (None) > --- WEAPON (4) ------- (None) > --- INVENTORY (5) ---- Improved Coolant Injector Large Storage Unit Heavy Laser Phasing Sabre Peak State ------------ > --- POWER ------------ Light Angular Momentum Engine > --- PROPULSION ------- Advanced Treads Centrium Leg Armored Huge Wheel > --- UTILITY ---------- Improved Cooling System Improved Cooling System Small Storage Unit Advanced Sensor Array Improved Signal Interpreter Improved Core Shielding Improved Medium Armor Plating Improved Medium Armor Plating > --- WEAPON ----------- Gatling Laser Thermic Laser Heavy Gatling Laser Gauss Rifle > --- INVENTORY -------- Antimatter Reactor Improved Carbon-fiber Leg Improved Carbon-fiber Leg Heavy Beamcaster Heavy Beamcaster Heavy Beamcaster Heavy Beamcaster Power Maul [Rating: 79] Favorites ----------- Power Cooled Ion Engine Engine Cooled Ion Engine Power Core Light Fission Core Reactor Antimatter Reactor Propulsion Aluminum Leg Treads Advanced Treads Leg Aluminum Leg Wheel Wheel Utility Improved Medium Armor Plating Device Improved Cooling System Storage Small Storage Unit Processor Improved Signal Interpreter Hackware Hacking Suite Protection Improved Medium Armor Plating Weapon Gatling Laser Energy Gun Gatling Laser Ballistic Gun Autogun Launcher Mini Grenade Launcher Special Weapon Welding Torch Impact Weapon Power Maul Slashing Weapon Phasing Sabre Build | -11 -10 -9 -8 -7 -7 -7 -6 -5 -5 -5 -5 -5 -5 ------- Run | Yrd Mat Mat Mat Fac Was Fac Fac Fac Was Fac Ext Cet Arc Slots Evolved 10 | . . 2 2 2 . . 2 2 . . . . . Power . | . . . . . . . . . . . . . . Propulsion 2 | . . . . 2 . . . . . . . . . Utility 6 | . . . 2 . . . 2 2 . . . . . Weapon 2 | . . 2 . . . . . . . . . . . Parts Attached 163 | 6 9 30 6 14 4 22 11 4 2 7 43 3 2 Power 8 | 1 1 2 . . 1 . 1 . . . 2 . . Engine 6 | 1 1 2 . . 1 . 1 . . . . . . Core 1 | . . . . . . . . . . . 1 . . Reactor 1 | . . . . . . . . . . . 1 . . Propulsion 42 | 2 5 9 . 8 . 2 4 . 2 2 8 . . Treads 7 | . . 2 . . . 1 1 . 1 . 2 . . Leg 19 | 2 1 . . 5 . 1 2 . 1 2 5 . . Wheel 16 | . 4 7 . 3 . . 1 . . . 1 . . Hover . | . . . . . . . . . . . . . . Flight . | . . . . . . . . . . . . . . Utility 41 | 1 2 4 3 2 1 7 5 3 . 1 10 1 1 Device 23 | . 1 2 2 2 1 2 3 2 . 1 5 1 1 Storage 4 | 1 1 . . . . 1 . . . . 1 . . Processor 3 | . . 1 . . . 1 . . . . 1 . . Hackware 1 | . . 1 . . . . . . . . . . . Protection 10 | . . . 1 . . 3 2 1 . . 3 . . Artifact . | . . . . . . . . . . . . . . Weapon 72 | 2 1 15 3 4 2 13 1 1 . 4 23 2 1 Energy Gun 20 | . . 3 . 3 . 6 1 1 . . 6 . . Energy Cannon . | . . . . . . . . . . . . . . Ballistic Gun 34 | 2 1 12 1 1 2 6 . . . . 8 1 . Ballistic Cannon . | . . . . . . . . . . . . . . Launcher 9 | . . . 2 . . . . . . 2 4 1 . Special Weapon 1 | . . . . . . . . . . . 1 . . Impact Weapon 6 | . . . . . . 1 . . . 2 3 . . Slashing Weapon 2 | . . . . . . . . . . . 1 . 1 Piercing Weapon . | . . . . . . . . . . . . . . Special Melee Weapon . | . . . . . . . . . . . . . . Unidentified Prototypes 3 | . . 1 . . . . . 1 . 1 . . . Parts Lost 48 | . . 6 . . 2 1 2 1 . 2 23 10 1 Power 3 | . . . . . . . . . . . 2 1 . Propulsion 15 | . . 2 . . 1 . 1 . . 1 6 4 . Utility 14 | . . . . . . 1 1 1 . 1 8 1 1 Weapon 16 | . . 4 . . 1 . . . . . 7 4 . Highest Loss Streak 10 | . . 3 . . 2 1 1 1 . 1 8 10 1 To Critical Strikes . | . . . . . . . . . . . . . . Average Slot Usage (%) 89 | . 91 98 100 99 75 89 91 91 92 87 74 32 11 Engine 6 | . 14 10 9 7 7 7 6 5 5 5 2 . . Treads 2 | . . . . . . 3 4 5 5 5 3 1 . Leg 8 | . 24 . . 28 . 1 4 5 4 5 12 6 . Wheel 8 | . 3 20 18 1 19 15 8 5 5 2 . . . Device 13 | . 6 10 16 15 15 13 12 19 17 19 10 6 5 Storage 6 | . 14 11 9 7 4 3 6 5 5 5 5 3 . Processor 4 | . . . 9 7 7 7 6 5 5 5 3 . . Protection 4 | . . . 1 . . 3 11 12 17 11 6 . . Energy Gun 12 | . . 8 18 15 11 15 13 14 17 17 13 1 . Ballistic Gun 13 | . 28 35 10 7 8 11 13 7 5 2 3 6 . Launcher 1 | . . . 7 7 . . . . . . . . . Naked Turns 36 | . . . . . . . . . . . . 29 7 Heaviest Build 58 | 12 29 42 48 44 46 39 43 52 52 55 58 48 5 Greatest Support 70 | 20 20 40 22 50 50 40 40 28 28 70 70 46 3 Greatest Overweight (x) 10 | 1 2 4 2 . 1 . 1 1 1 1 10 8 1 Average Overweight (x) . | . . 1 1 . . . . 1 1 . . . . Largest Inventory Capacity 15 | 8 15 15 15 15 15 8 8 8 8 8 15 15 5 Average Capacity 10 | 7 8 15 15 15 11 6 8 8 8 8 9 11 5 Most Carried 15 | 6 11 15 15 15 15 8 8 8 8 8 15 15 5 Average Carried 9 | 4 7 14 14 14 11 6 7 7 7 7 7 11 3 Final Capacity 15 | 8 15 15 15 15 5 8 8 8 8 8 15 5 5 Final Carried 15 | 6 11 15 15 15 5 8 8 8 8 8 15 5 4 Class Distribution -------------------- 22% | Scavenger-Tank 17% | Gunner 15% | Skirmisher 14% | Scavenger-Skirmisher 12% | Tank 9% | Scavenger-Gunner 7% | Mutant Dominant Class ---------------- Mutant | -10/Materials Gunner | -9/Materials Scavenger-Skirmisher | -8/Materials Scavenger-Skirmisher | -7/Factory Skirmisher | -7/Waste Tank | -7/Factory Skirmisher | -6/Factory Skirmisher | -5/Factory Tank | -5/Waste Scavenger-Tank | -5/Factory Scavenger-Tank | -5/Extension Mutant | -5/Cetus Mutant | -5/Archives Resources | -11 -10 -9 -8 -7 -7 -7 -6 -5 -5 -5 -5 -5 -5 ----------- Run | Yrd Mat Mat Mat Fac Was Fac Fac Fac Was Fac Ext Cet Arc Matter Collected 3375 | 260 116 957 158 140 . 530 211 64 34 44 830 . 31 Remotely . | . . . . . . . . . . . . . . Salvage Created 4900 | . 173 1805 194 214 . 927 257 168 . 92 1039 . 31 Parts 249 | . 11 129 11 13 . 36 5 7 . 1 32 . 4 Haulers Intercepted 4 | . . 3 . . . 1 . . . . . . . Recyclers Shooed 2 | . . . . . . 1 . . . . 1 . . Parts Field Recycled . | . . . . . . . . . . . . . . Retrieved Matter . | . . . . . . . . . . . . . . Parts Self-Destructed . | . . . . . . . . . . . . . . Prevented . | . . . . . . . . . . . . . . Kills | -11 -10 -9 -8 -7 -7 -7 -6 -5 -5 -5 -5 -5 -5 ------- Run | Yrd Mat Mat Mat Fac Was Fac Fac Fac Was Fac Ext Cet Arc Combat Hostiles Destroyed 87 | . 4 34 3 4 . 12 5 3 . 2 20 . . Guns 81 | . 4 34 3 4 . 12 4 3 . 1 16 . . AOE 1 | . . . . . . . . . . . 1 . . Classes Destroyed 15 | . 1 9 . 2 . 2 . . . . . . 1 Worker 6 | . . 6 . . . . . . . . . . . Builder 5 | . . 3 1 . . . . . . . 1 . . Hauler 4 | . . 3 . . . 1 . . . . . . . Recycler 5 | . . 2 . . . 3 . . . . . . . Mechanic 1 | . . 1 . . . . . . . . . . . Operator 1 | . . . . . . . . . . . . . 1 Watcher 5 | . . 2 1 . . 2 . . . . . . . Swarmer 12 | . . 10 . . . 1 . . . . 1 . . Grunt 37 | . 4 13 3 . . 4 3 2 . . 8 . . Brawler 6 | . . 1 . . . 2 1 1 . . 1 . . Duelist 1 | . . . . . . 1 . . . . . . . Sentry 20 | . . 10 . 2 . 1 1 . . . 6 . . Specialist 2 | . . . . . . 2 . . . . . . . Hunter 5 | . . . . 1 . . . . . . 4 . . Programmer 4 | . . . . 1 . 1 . . . 2 . . . Best Kill Streak 7 | . 2 7 3 1 . 4 2 2 . 2 4 . 1 Combat Bots Only 6 | . 2 6 3 1 . 4 2 2 . 2 4 . . Max Kills in Single Turn 4 | . 1 4 1 1 . 1 1 1 . 1 1 . 1 Gunslinging 2 | . . 2 . . . . . . . . . . . Exploded 1 | . . . . . . . . . . . 1 . . Melee . | . . . . . . . . . . . . . . Uniques/NPCs Destroyed . | . . . . . . . . . . . . . . Combat | -11 -10 -9 -8 -7 -7 -7 -6 -5 -5 -5 -5 -5 -5 -------- Run | Yrd Mat Mat Mat Fac Was Fac Fac Fac Was Fac Ext Cet Arc Hostile Shots Fired 602 | . 23 102 10 35 3 68 34 7 . 15 225 71 9 Missed 175 | . 5 27 3 12 . 24 8 2 . 3 67 20 4 Damage Taken 8921 | . 218 1180 126 381 163 764 350 156 . 347 3649 1449 138 Core 1514 | . 47 181 38 69 57 84 35 . . 70 273 572 88 Absorbed by Shields . | . . . . . . . . . . . . . . Redirected to Shielding 13 | . . . . . . . 13 . . . . . . Core Remaining (%) 82 | 100 81 54 93 . . 70 95 . . . . . . Volleys Fired 248 | . 22 74 16 10 . 38 13 5 . 8 59 3 . Largest 4 | . 2 4 4 3 . 4 4 4 . 4 4 3 . Hottest 346 | . 40 158 158 177 . 204 221 293 . 293 346 96 . Shots Fired 813 | . 44 287 47 30 . 135 44 20 1 32 166 7 . Gun 797 | . 44 287 45 30 . 135 44 20 1 32 153 6 . Cannon . | . . . . . . . . . . . . . . Launcher 13 | . . . 2 . . . . . . . 10 1 . Special 3 | . . . . . . . . . . . 3 . . Kinetic 416 | . 44 211 17 10 . 59 20 5 1 8 35 6 . Thermal 384 | . . 76 28 20 . 76 24 15 . 24 121 . . Explosive 13 | . . . 2 . . . . . . . 10 1 . Electromagnetic . | . . . . . . . . . . . . . . Robot Hit Streak 30 | . 10 16 14 9 . 17 16 12 13 5 30 2 . Robot Miss Streak 8 | . 1 4 5 3 . 8 5 3 . 2 4 2 . Penetration Max 1 | . . . . . . 1 . . . . . . . Secondary Targets 13 | . . 3 . . . 4 . . . . 6 . . Max Gunslinging Chain 2 | . . 2 . . . 1 . . . . 1 . . Shots Hit Robots 521 | . 32 161 25 22 . 96 39 16 1 9 116 3 1 Core Hits 273 | . 9 77 12 13 . 44 27 12 . 5 69 5 . Critical Kills . | . . . . . . . . . . . . . . Critical Parts Destroyed 2 | . . . . . . . . 1 . . 1 . . Critical Strikes 22 | . . 4 2 . . 5 3 2 . . 5 1 . Burn 19 | . . 4 2 . . 5 3 1 . . 4 . . Destroy 3 | . . . . . . . . 1 . . 1 1 . Melee Attacks 24 | . . . . . . . . . . 11 9 . 4 Impact 20 | . . . . . . . . . . 11 9 . . Slashing 4 | . . . . . . . . . . . . . 4 Piercing . | . . . . . . . . . . . . . . Sneak Attacks 1 | . . . . . . . . . . . . . 1 Combat Hostiles . | . . . . . . . . . . . . . . Follow-up Attacks . | . . . . . . . . . . . . . . Damage Inflicted 10694 | . 331 2415 365 434 . 2213 837 345 27 333 3094 172 128 Guns 9927 | . 331 2136 365 434 . 2213 837 345 27 333 2868 38 . Cannons . | . . . . . . . . . . . . . . Explosions 636 | . . 279 . . . . . . . . 223 134 . Melee 128 | . . . . . . . . . . . . . 128 Ramming . | . . . . . . . . . . . . . . Kinetic 3716 | . 331 1413 163 77 . 773 336 41 27 49 468 38 . Thermal 6493 | . . 1002 202 357 . 1440 501 304 . 284 2403 . . Explosive 357 | . . . . . . . . . . . 223 134 . Electromagnetic . | . . . . . . . . . . . . . . Impact . | . . . . . . . . . . . . . . Slashing 128 | . . . . . . . . . . . . . 128 Piercing . | . . . . . . . . . . . . . . Highest Corruption 8 | . . . . . . 1 3 2 2 2 8 8 8 Average Corruption 3 | . . . . . . 1 3 2 2 1 6 8 8 Corruption Purged 5 | . . . . . . . . . . 5 . . . Corruption Blocked . | . . . . . . . . . . . . . . Effects 48 | . . . . . . 4 8 3 11 . 16 5 1 Message Errors 15 | . . . . . . 1 2 2 4 . 5 1 . Matter Fused 11 | . . . . . . 1 2 1 2 . 3 1 1 Heat Flow Errors 3 | . . . . . . . . . . . 2 1 . Energy Discharges 5 | . . . . . . 1 . . 3 . 1 . . Parts Rejected 1 | . . . . . . . . . . . . 1 . Parts Fused 1 | . . . . . . . 1 . . . . . . Data Loss (minor) 6 | . . . . . . . 2 . . . 3 1 . Data Loss (major) 4 | . . . . . . 1 1 . 1 . 1 . . Misfires 2 | . . . . . . . . . 1 . 1 . . Overload Shots . | . . . . . . . . . . . . . . Overflow Damage 290 | . . 192 . . . . . . . . . . 98 Projectiles . | . . . . . . . . . . . . . . Explosions 192 | . . 192 . . . . . . . . . . . Melee 98 | . . . . . . . . . . . . . 98 Knockbacks . | . . . . . . . . . . . . . . Impact . | . . . . . . . . . . . . . . Kinetic . | . . . . . . . . . . . . . . Secondary . | . . . . . . . . . . . . . . Self-Inflicted Damage 379 | . . 262 18 . . . . . . . 76 23 . Shots 7 | . . 3 1 . . . . . . . 2 1 . Rammed . | . . . . . . . . . . . . . . Targets Rammed . | . . . . . . . . . . . . . . Kicked . | . . . . . . . . . . . . . . Crushed . | . . . . . . . . . . . . . . Highest Temperature 254 | . 36 156 243 54 . 172 254 51 . 42 218 216 . Average Temperature 60 | . 14 35 80 18 . 39 88 26 . 28 87 124 . Received Heat Transfer 1857 | . 141 432 81 36 . 108 126 27 . . 681 198 27 Effects 4 | . . . 2 . . . . . . . 2 . . Interference 4 | . . . 2 . . . . . . . 2 . . Siege Activations . | . . . . . . . . . . . . . . Robots Corrupted . | . . . . . . . . . . . . . . Combat Hostiles . | . . . . . . . . . . . . . . Parts Fried . | . . . . . . . . . . . . . . Impact Corruptions . | . . . . . . . . . . . . . . Robots Melted 5 | . . . . . . . 1 . . 1 3 . . Combat Hostiles 5 | . . . . . . . 1 . . 1 3 . . Parts Melted 33 | . . 5 . 2 . 8 3 1 . 1 13 . . Heat Transferred 14700 | . . 2383 666 745 . 3351 1550 750 . 475 4780 . . Parts Sabotaged . | . . . . . . . . . . . . . . Parts Stolen . | . . . . . . . . . . . . . . Parts Stripped . | . . . . . . . . . . . . . . Power Chain Reactions . | . . . . . . . . . . . . . . Alert | -11 -10 -9 -8 -7 -7 -7 -6 -5 -5 -5 -5 -5 -5 ------- Run | Yrd Mat Mat Mat Fac Was Fac Fac Fac Was Fac Ext Cet Arc Peak Influence 844 | . 222 844 471 214 46 319 253 158 14 70 576 324 118 Initial 322 | . . 9 321 214 16 18 123 123 14 . 2 322 87 Average 187 | . 78 397 391 122 27 152 177 115 13 17 182 259 93 Maximum Alert Level 3 | . 1 3 2 1 . 1 1 . . . 2 1 . Low Security (%) 56 | 100 79 14 . 56 100 54 52 100 100 100 62 . 100 Level 1 30 | . 20 40 78 43 . 45 47 . . . 23 100 . Level 2 9 | . . 30 21 . . . . . . . 14 . . Level 3 2 | . . 14 . . . . . . . . . . . Level 4 . | . . . . . . . . . . . . . . Level 5 . | . . . . . . . . . . . . . . High Security . | . . . . . . . . . . . . . . Max Security . | . . . . . . . . . . . . . . Squads Dispatched 15 | . 2 3 1 2 . 2 . . . 2 3 . . Investigation 3 | . . 1 1 . . . . . . . 1 . . Extermination 4 | . . . . 1 . 1 . . . 2 . . . Reinforcement 8 | . 2 2 . 1 . 1 . . . . 2 . . Assault . | . . . . . . . . . . . . . . Garrison . | . . . . . . . . . . . . . . Intercept . | . . . . . . . . . . . . . . Searches Triggered . | . . . . . . . . . . . . . . Construction Impeded 1 | . . . . . . . . . . . 1 . . Haulers Reinforced . | . . . . . . . . . . . . . . Active Scanning Responses . | . . . . . . . . . . . . . . Cargo Convoy Interrupts . | . . . . . . . . . . . . . . Stealth | -11 -10 -9 -8 -7 -7 -7 -6 -5 -5 -5 -5 -5 -5 --------- Run | Yrd Mat Mat Mat Fac Was Fac Fac Fac Was Fac Ext Cet Arc Distress Signals 10 | . 1 2 1 . . 2 . . . . 3 1 . Communications Jammed . | . . . . . . . . . . . . . . Distress Signals . | . . . . . . . . . . . . . . Times Spotted 160 | . 12 50 7 5 6 21 5 4 1 3 38 5 3 Peak Tracking Total 8 | . 6 7 4 2 6 4 4 3 1 3 8 5 3 Tactical Retreats 9 | . 2 1 . . . 2 . 1 . . 3 . . Traps | -11 -10 -9 -8 -7 -7 -7 -6 -5 -5 -5 -5 -5 -5 ------- Run | Yrd Mat Mat Mat Fac Was Fac Fac Fac Was Fac Ext Cet Arc Traps Triggered 11 | . 1 1 1 2 . 1 2 1 . . 2 . . Indirectly . | . . . . . . . . . . . . . . Trap Hack Attempts . | . . . . . . . . . . . . . . Triggered . | . . . . . . . . . . . . . . Disarmed . | . . . . . . . . . . . . . . Reprogrammed . | . . . . . . . . . . . . . . Reused . | . . . . . . . . . . . . . . Traps Extracted . | . . . . . . . . . . . . . . Installed . | . . . . . . . . . . . . . . Triggered . | . . . . . . . . . . . . . . Machines | -11 -10 -9 -8 -7 -7 -7 -6 -5 -5 -5 -5 -5 -5 ---------- Run | Yrd Mat Mat Mat Fac Was Fac Fac Fac Was Fac Ext Cet Arc Machines Disabled 13 | . . 7 1 . . 1 1 . . . 3 . . Max in Single Turn 4 | . . 4 1 . . 1 1 . . . 1 . . Machines Repaired . | . . . . . . . . . . . . . . Machines Dismantled . | . . . . . . . . . . . . . . Machines Sabotaged . | . . . . . . . . . . . . . . Overloaded Fab Kills . | . . . . . . . . . . . . . . Hacking | -11 -10 -9 -8 -7 -7 -7 -6 -5 -5 -5 -5 -5 -5 --------- Run | Yrd Mat Mat Mat Fac Was Fac Fac Fac Was Fac Ext Cet Arc Machines Accessed 17 | . 1 5 . . . 1 1 1 . 3 5 . . Terminals 14 | . 1 5 . . . 1 . 1 . 1 5 . . Fabricators 1 | . . . . . . . . . . 1 . . . Repair Stations 1 | . . . . . . . . . . 1 . . . Recycling Units . | . . . . . . . . . . . . . . Scanalyzers 1 | . . . . . . . 1 . . . . . . Garrison Access . | . . . . . . . . . . . . . . Total Hacks 35 | . 2 11 . . . 1 3 2 . 5 11 . . Successful 16 | . 1 7 . . . . 2 . . 2 4 . . Failed 19 | . 1 4 . . . 1 1 2 . 3 7 . . Catastrophic 1 | . . . . . . . . . . 1 . . . Database Lockouts . | . . . . . . . . . . . . . . Manual 8 | . . 4 . . . 1 . . . . 3 . . Terminals 29 | . 2 11 . . . 1 . 2 . 2 11 . . Fabricators 1 | . . . . . . . . . . 1 . . . Repair Stations 2 | . . . . . . . . . . 2 . . . Recycling Units . | . . . . . . . . . . . . . . Scanalyzers 3 | . . . . . . . 3 . . . . . . Garrison Access . | . . . . . . . . . . . . . . Terminal Hacks 11 | . 1 6 . . . . . . . 1 3 . . Record 1 | . . . . . . . . . . 1 . . . Prototype ID Bank 2 | . . 2 . . . . . . . . . . . Open Door 3 | . . . . . . . . . . . 3 . . Branch Access Points 1 | . 1 . . . . . . . . . . . . Locate Traps 1 | . . 1 . . . . . . . . . . . Dispatch Records 1 | . . 1 . . . . . . . . . . . Investigation Status 1 | . . 1 . . . . . . . . . . . Hauler Manifests 1 | . . 1 . . . . . . . . . . . Fabricator Hacks . | . . . . . . . . . . . . . . Repair Station Hacks 1 | . . . . . . . . . . 1 . . . Scan Component 1 | . . . . . . . . . . 1 . . . Recycling Unit Hacks . | . . . . . . . . . . . . . . Scanalyzer 2 | . . . . . . . 2 . . . . . . Insert Component 1 | . . . . . . . 1 . . . . . . Analyze 1 | . . . . . . . 1 . . . . . . Garrison Access Hacks . | . . . . . . . . . . . . . . Unauthorized Hacks 2 | . . 1 . . . . . . . . 1 . . Terminals 2 | . . 1 . . . . . . . . 1 . . Assimilate 2 | . . 1 . . . . . . . . 1 . . Fabricators . | . . . . . . . . . . . . . . Repair Stations . | . . . . . . . . . . . . . . Recycling Units . | . . . . . . . . . . . . . . Scanalyzers . | . . . . . . . . . . . . . . Garrison Access . | . . . . . . . . . . . . . . Data Cores Recovered . | . . . . . . . . . . . . . . Used . | . . . . . . . . . . . . . . Hacking Detections 12 | . 1 3 . . . 1 . 1 . 3 3 . . Full Trace Events 1 | . . . . . . . . . . . 1 . . Feedback Events . | . . . . . . . . . . . . . . Feedback Blocked . | . . . . . . . . . . . . . . Robot Schematics Acquired . | . . . . . . . . . . . . . . Robots Built . | . . . . . . . . . . . . . . Authchips . | . . . . . . . . . . . . . . Time . | . . . . . . . . . . . . . . Total Robot Build Rating . | . . . . . . . . . . . . . . Part Schematics Acquired 1 | . . . . . . . 1 . . . . . . Parts Built . | . . . . . . . . . . . . . . Authchips . | . . . . . . . . . . . . . . Time . | . . . . . . . . . . . . . . Total Part Build Rating . | . . . . . . . . . . . . . . Parts Repaired . | . . . . . . . . . . . . . . Time . | . . . . . . . . . . . . . . Parts Recycled . | . . . . . . . . . . . . . . Recycled Matter . | . . . . . . . . . . . . . . Retrieved Matter . | . . . . . . . . . . . . . . Retrieved Components . | . . . . . . . . . . . . . . Parts Scanalyzed 1 | . . . . . . . 1 . . . . . . Part Schematics Acquired 1 | . . . . . . . 1 . . . . . . Parts Damaged . | . . . . . . . . . . . . . . Bothacking | -11 -10 -9 -8 -7 -7 -7 -6 -5 -5 -5 -5 -5 -5 ------------ Run | Yrd Mat Mat Mat Fac Was Fac Fac Fac Was Fac Ext Cet Arc Used RIF Installer . | . . . . . . . . . . . . . . Robots Hacked . | . . . . . . . . . . . . . . Non-combat . | . . . . . . . . . . . . . . Combat . | . . . . . . . . . . . . . . Robot Hacks Applied . | . . . . . . . . . . . . . . Relay Couplers Released . | . . . . . . . . . . . . . . Fabnet Peak Effective % . | . . . . . . . . . . . . . . Robots Rewired . | . . . . . . . . . . . . . . Allies Hacked . | . . . . . . . . . . . . . . Hacks Repelled . | . . . . . . . . . . . . . . Allies | -11 -10 -9 -8 -7 -7 -7 -6 -5 -5 -5 -5 -5 -5 -------- Run | Yrd Mat Mat Mat Fac Was Fac Fac Fac Was Fac Ext Cet Arc Total Allies 4 | . . . . . . . . . . . 4 . . Largest Group 4 | . . . . . . . . . . . 4 2 . Highest-Rated Group 121 | . . . . . . . . . . . 121 70 . Highest-Rated Ally 39 | . . . . . . . . . . . 39 39 . Total Orders . | . . . . . . . . . . . . . . Ally Attacks 79 | . . . . . . . . . . . 69 10 . Total Damage 1259 | . . . . . . . . . . . 1150 109 . Kills 11 | . . . . . . . . . . . 11 . . Allies Corrupted . | . . . . . . . . . . . . . . Allies Melted . | . . . . . . . . . . . . . . Intel | -11 -10 -9 -8 -7 -7 -7 -6 -5 -5 -5 -5 -5 -5 ------- Run | Yrd Mat Mat Mat Fac Was Fac Fac Fac Was Fac Ext Cet Arc Robot Analysis Total . | . . . . . . . . . . . . . . Derelict Logs Recovered . | . . . . . . . . . . . . . . Drone Launches . | . . . . . . . . . . . . . . Drone Recoveries . | . . . . . . . . . . . . . . Exploration | -11 -10 -9 -8 -7 -7 -7 -6 -5 -5 -5 -5 -5 -5 ------------- Run | Yrd Mat Mat Mat Fac Was Fac Fac Fac Was Fac Ext Cet Arc Turns Passed 8247 | 54 431 1682 279 923 72 1177 390 447 420 753 1481 91 47 Spaces Moved 4631 | 33 181 1088 155 241 73 857 240 338 357 358 586 82 42 Core 106 | 4 . . . . . . . . . . 3 57 42 Treads 546 | . . 4 . . . . . . . 239 303 . . Legs 635 | 29 137 . . 213 . . . . . . 231 25 . Wheels 3344 | . 44 1084 155 28 73 857 240 338 357 119 49 . . Hover . | . . . . . . . . . . . . . . Flight . | . . . . . . . . . . . . . . Fastest Speed 50 | 50 95 95 100 90 90 95 95 115 115 115 120 50 50 Average Speed 113 | 120 114 104 101 118 92 95 107 115 115 145 150 90 82 Slowest Speed 550 | 190 120 320 115 122 110 95 115 115 115 160 550 450 100 Overloaded Moves . | . . . . . . . . . . . . . . Propulsion Burnouts . | . . . . . . . . . . . . . . Robots Hopped . | . . . . . . . . . . . . . . Cave-ins Triggered 1 | . . . . . . . . . . . 1 . . Exploration Rate (%) 38 | 5 40 95 16 8 64 20 5 6 96 8 68 56 51 Regions Visited 13 Branch Regions 3 Pre-discovered Areas . | . . . . . . . . . . . . . . Known Exits Taken 5 | . . 1 1 . . 1 1 . . 1 . . . Unknown Exits Taken 4 | 1 1 . . . . . . . . . 1 1 . Scrap Searched . | . . . . . . . . . . . . . . Spaces Dug 107 | . . . . . . . . . . 12 92 . 3 Terrain Destroyed 308 | . . 36 21 . . 1 . . . 12 212 23 3 Melee 23 | . . . . . . . . . . 11 9 . 3 Projectile 6 | . . . . . . 1 . . . 1 3 1 . AOE 279 | . . 36 21 . . . . . . . 200 22 . Terrain Rammed . | . . . . . . . . . . . . . . Walls Destroyed . | . . . . . . . . . . . . . . Machines Disabled . | . . . . . . . . . . . . . . Actions | -11 -10 -9 -8 -7 -7 -7 -6 -5 -5 -5 -5 -5 -5 --------- Run | Yrd Mat Mat Mat Fac Was Fac Fac Fac Was Fac Ext Cet Arc Total 7014 | 44 367 1492 243 854 77 1135 341 381 371 544 1024 92 49 Wait 1777 | . 143 251 65 583 . 192 49 31 . 159 302 2 . Move 4619 | 32 180 1087 154 241 72 856 239 338 356 357 584 81 42 Hop . | . . . . . . . . . . . . . . Pick Up 73 | 6 7 21 2 . . 12 3 2 5 1 13 1 . Fast Attach 56 | 6 3 10 . 1 . 5 5 2 2 2 19 1 . Attach 37 | . . 4 2 2 . 5 4 1 . 1 15 1 2 Detach 17 | . . 1 . 2 . . 4 . . . 9 . 1 Swap 70 | . 6 16 4 11 4 12 2 1 . 4 9 1 . Drop 74 | . 6 28 . 4 1 15 6 1 8 1 2 2 . Fire 248 | . 22 74 16 10 . 38 13 5 . 8 59 3 . Melee 24 | . . . . . . . . . . 11 9 . 4 Ram . | . . . . . . . . . . . . . . Kick . | . . . . . . . . . . . . . . Crush . | . . . . . . . . . . . . . . Escape Stasis 19 | . . . . . . . 16 . . . 3 . . Rewire . | . . . . . . . . . . . . . . Trap . | . . . . . . . . . . . . . . Miscellaneous . | . . . . . . . . . . . . . . Route ------- -11/Scrapyard -10/Materials (discovered 3 exits: *Mat / Min x2) -9/Materials (discovered 4 exits: *Mat x3 / [*Min]) -8/Materials -7/Factory -7/Waste -7/Factory -6/Factory (discovered 2 exits: *Fac / *Low) -5/Factory -5/Waste -5/Factory (discovered 2 exits: *Upp / *Ext) -5/Extension (discovered 2 exits: [*Fac] / *Cet) -5/Cetus -5/Archives History --------- Turn | Location | Event 12 | -11/Scrapyard | Discovered new exit (range 16) 55 | -11/Scrapyard | Entered Materials 318 | -10/Materials | Build established: Mutant 413 | -10/Materials | Discovered new exit (range 11) 443 | -10/Materials | Identified exit to Mines 486 | -10/Materials | Entered another Materials area 486 | -9/Materials | Evolved 2 slots: Weapon x2 797 | -9/Materials | Build established: Gunner 1143 | -9/Materials | Discovered new exit (range 16) 1253 | -9/Materials | Discovered new exit (range 16) 1435 | -9/Materials | Lost 3 parts (3w) 1806 | -9/Materials | Discovered new exit (range 4) 2050 | -9/Materials | Discovered new exit (range 5) 2167 | -9/Materials | Identified exit to Materials 2168 | -9/Materials | Entered another Materials area 2168 | -8/Materials | Evolved 2 slots: Utility x2 2442 | -8/Materials | Discovered new exit (range 5) 2445 | -8/Materials | Identified exit to Factory 2447 | -8/Materials | Entered Factory 2447 | -7/Factory | Evolved 2 slots: Propulsion x2 2473 | -7/Factory | Build established: Scavenger-Skirmisher 3370 | -7/Factory | Sucked down chute 3370 | -7/Factory | Entered Waste 3388 | -7/Waste | Spotted C-40 Crusher 3402 | -7/Waste | Spotted C-40 Crusher 3406 | -7/Waste | Spotted C-40 Crusher 3407 | -7/Waste | Spotted C-40 Crusher 3408 | -7/Waste | Spotted C-40 Crusher 3412 | -7/Waste | Spotted C-40 Crusher 3416 | -7/Waste | Crushed by Compactor (1 part destroyed) 3417 | -7/Waste | Crushed by Compactor (0 parts destroyed, 2 dropped) 3419 | -7/Waste | Crushed by Compactor (1 part destroyed, 1 dropped) 3432 | -7/Waste | Discovered new exit (range 12) 3441 | -7/Waste | Identified exit to Factory 3442 | -7/Waste | Entered Factory 3744 | -7/Factory | Build established: Skirmisher 4336 | -7/Factory | Build established: Tank 4615 | -7/Factory | Discovered new exit (range 5) 4618 | -7/Factory | Identified exit to Factory 4619 | -7/Factory | Entered another Factory area 4619 | -6/Factory | Evolved 2 slots: Utility x2 4663 | -6/Factory | Discovered new exit (range 3) 4664 | -6/Factory | Identified exit to Lower Caves 4939 | -6/Factory | Discovered new exit (range 4) 4956 | -6/Factory | Identified exit to Factory 5009 | -6/Factory | Entered another Factory area 5009 | -5/Factory | Evolved 2 slots: Utility x2 5161 | -5/Factory | Build established: Skirmisher 5456 | -5/Factory | Sucked down chute 5456 | -5/Factory | Entered Waste 5456 | -5/Waste | The area was eerily silent 5634 | -5/Waste | Discovered new exit (range 12) 5681 | -5/Waste | Build established: Tank 5840 | -5/Waste | A Compactor rumbled back to life 5840 | -5/Waste | Spotted C-40 Crusher 5872 | -5/Waste | Identified exit to Factory 5876 | -5/Waste | Entered Factory 5964 | -5/Factory | Discovered new exit (range 5) 5968 | -5/Factory | Identified exit to Upper Caves 6076 | -5/Factory | Build established: Scavenger-Tank 6583 | -5/Factory | Discovered new exit (range 15) 6627 | -5/Factory | Identified exit to Extension 6629 | -5/Factory | Entered Extension 6635 | -5/Extension | Disrupted transfer network 7475 | -5/Extension | Lost 8 parts (1p2n3u2w) 7553 | -5/Extension | Spotted B-75 Beast 7576 | -5/Extension | Spotted B-75 Beast 7625 | -5/Extension | Lost 8 parts (1p1n3u3w) 7678 | -5/Extension | Crushed by falling debris 7721 | -5/Extension | Rescued a captive Derelict 7806 | -5/Extension | Rescued a captive Derelict 7878 | -5/Extension | Rescued a captive Derelict 7883 | -5/Extension | Rescued a captive Derelict 7973 | -5/Extension | Lost 5 parts (2n1u2w) 8097 | -5/Extension | Discovered new exit (range 10) 8099 | -5/Extension | Discovered new exit (range 6) 8110 | -5/Extension | Entered Cetus 8110 | -5/Cetus | Accompanied by 2 allies 8126 | -5/Cetus | Spotted Cetus Guard 8126 | -5/Cetus | Spotted Cetus Guard 8134 | -5/Cetus | Spotted Cetus Guard 8163 | -5/Cetus | Spotted Cetus Guard 8164 | -5/Cetus | Core integrity fell below 50% 8172 | -5/Cetus | Released all parts (2) 8176 | -5/Cetus | Core integrity fell below 20% 8194 | -5/Cetus | Discovered new exit (range 16) 8200 | -5/Cetus | Lost 10 parts (1p4n1u4w) 8201 | -5/Cetus | Entered Archives 8248 | -5/Archives | Destroyed by Y-72 Warden with Quantum Rifle Last Messages --------------- 08173_ Acquired Lrg. Storage Unit. 08173_ Penetrated by Slug. 08180_ QM: